bitfinex/quotes_ETHUSD_20240924
["timestamp","ask_amount","ask_price","bid_price","bid_amount"]
[1727142266028,0.10152803,2636.9,2636.8,3.79247]
[1727142271223,0.7553,2636.8,2636.4,3.79302]
[1727142271423,0.04388005,2636.7,2636.2,3.79327]
[1727142271752,0.04388005,2636.7,2636.3,4.253237]
[1727142271953,0.04388005,2636.7,2636.3,3.79307]
[1727142272150,0.7553,2636.8,2636.2,3.79327]
[1727142272359,0.06376009,2636.6,2636.4,3.79304]
[1727142278055,3.79313,2636.4,2635.8,3.79386]
[1727142278240,3.79313,2636.4,2635.6,3.79412]
[1727142278241,0.81866461,2636.3,2635.6,3.79412]
[1727142278430,0.7553,2635.9,2635.4,3.79439]
[1727142278668,0.7553,2635.9,2635.4,5.02695991]
[1727142279171,0.7553,2635.9,2635.5,3.79424]
[1727142279483,0.7553,2636.2,2635.8,6.96335937]
[1727142279631,0.7553,2636.2,2635.8,7.03922593]
[1727142279828,0.7553,2636.2,2636.0,3.79356]
[1727142280143,0.06336461,2636.3,2636.1,3.79346]
[1727142280336,0.06336461,2636.3,2635.8,8.12747596]
[1727142280540,0.06336461,2636.3,2635.9,0.07586115]
[1727142281024,0.06336461,2636.3,2635.8,11.92122596]
[1727142281230,0.06336461,2636.3,2635.9,3.86960117]
[1727142281770,0.06336461,2636.3,2635.9,0.07586117]
[1727142281974,0.06336461,2636.3,2635.8,8.12742596]
[1727142282567,0.06336461,2636.3,2635.8,11.92122596]
[1727142282773,0.06336461,2636.3,2635.9,0.07586117]
[1727142282940,0.06336461,2636.3,2635.9,1.35640988]
[1727142283344,0.06336461,2636.3,2636.2,0.8084]
[1727142283559,0.06336461,2636.3,2636.2,0.88425142]
[1727142284076,0.06336461,2636.3,2636.2,4.67758142]
[1727142284379,0.06336461,2636.3,2636.2,0.07585142]
[1727142284583,0.06336461,2636.3,2636.2,0.78313608]
[1727142285568,0.06336461,2636.3,2636.2,0.85899125]
[1727142285731,0.06336461,2636.3,2636.2,4.65232125]
[1727142286987,0.06336461,2636.3,2636.2,0.85899125]
[1727142289380,0.06336461,2636.3,2636.2,4.65232125]
[1727142293901,0.06336461,2636.3,2636.2,0.78313608]
[1727142294065,0.06336461,2636.3,2636.1,3.86921532]
[1727142294392,0.7553,2636.7,2636.1,3.79336]
[1727142294757,0.02093086,2636.6,2636.1,3.79336]
[1727142294957,0.02093086,2636.6,2636.1,7.66260513]
[1727142295353,0.02093086,2636.6,2636.1,3.86921513]
[1727142295554,0.02093086,2636.6,2636.1,3.79336]
[1727142295888,0.02093086,2636.6,2636.1,4.37660605]
[1727142296258,0.02093086,2636.6,2636.1,8.16998605]
[1727142296492,0.02093086,2636.6,2636.1,8.09413087]
[1727142296676,0.02093086,2636.6,2636.1,4.30075087]
[1727142297090,0.02093086,2636.6,2635.9,5.07423871]
[1727142297091,3.81379086,2636.6,2635.9,5.07421871]
[1727142297273,0.7606,2636.5,2635.9,5.15007831]
[1727142297599,0.02138003,2636.4,2635.9,5.15007831]
[1727142297797,0.02138003,2636.4,2636.1,3.79335]
[1727142298108,0.04160043,2636.3,2636.1,3.79335]
[1727142300298,0.04160043,2636.3,2635.9,3.79367]
[1727142300969,0.04160043,2636.3,2635.8,4.03790963]
[1727142301221,0.04160043,2636.3,2636.2,3.79333]
[1727142301428,0.04160043,2636.3,2636.2,4.95239406]
[1727142301944,0.04160043,2636.3,2636.2,5.70529406]
[1727142302305,0.7801,2636.8,2636.4,3.79301]
[1727142302635,0.7801,2636.8,2636.2,5.70529406]
[1727142302636,2.76908879,2636.8,2636.2,3.79324]
[1727142302996,6.56166879,2636.8,2636.2,3.79324]
[1727142303510,6.56152667,2636.8,2636.2,3.79324]
[1727142305004,0.02078301,2636.7,2636.2,3.79324]
[1727142305203,2.00962968,2636.7,2636.2,3.79324]
[1727142305425,0.04219757,2636.6,2636.2,3.79324]
[1727142307850,0.7801,2636.5,2636.0,3.79358]
[1727142308147,0.7801,2636.5,2635.8,3.79385]
[1727142308148,0.042122,2636.4,2635.8,3.79385]
[1727142308519,2.03096867,2636.4,2635.8,3.79385]
[1727142308928,5.82410867,2636.4,2635.8,3.79385]
[1727142310020,4.5734,2636.3,2635.7,0.07586833]
[1727142310362,0.7801,2636.0,2635.6,3.0]
[1727142310853,0.04173949,2635.9,2635.5,6.96374937]
[1727142311162,0.04173949,2635.9,2635.5,7.03962443]
[1727142311363,0.04173949,2635.9,2635.5,6.96374937]
[1727142312763,0.04173949,2635.9,2635.6,3.79419]
[1727142312920,0.04173949,2635.9,2635.5,6.96368937]
[1727142313122,0.04173949,2635.9,2635.6,3.79418]
[1727142314120,0.04173949,2635.9,2635.8,6.96335937]
[1727142314341,0.04173949,2635.9,2635.8,7.03922859]
[1727142314541,0.8277,2636.2,2635.8,7.03922859]
[1727142314938,0.06291809,2636.1,2635.8,7.03922859]
[1727142315255,0.06291809,2636.1,2635.8,3.16944937]
[1727142315457,0.06291809,2636.1,2635.7,7.66376982]
[1727142315616,0.06291809,2636.1,2635.8,3.79388]
[1727142315818,0.06291809,2636.1,2636.0,3.79362]
[1727142316019,0.06291809,2636.1,2636.0,3.869483]
[1727142316305,1.98884667,2636.4,2636.0,4.673983]
[1727142316479,1.98884667,2636.4,2636.2,3.79332]
[1727142316480,0.02056021,2636.3,2636.2,3.79332]
[1727142316785,0.0629347,2636.3,2636.2,3.79332]
[1727142316958,0.0629347,2636.3,2636.2,4.1802379]
[1727142317161,0.0629347,2636.3,2636.2,4.25609215]
[1727142317350,0.0629347,2636.3,2636.2,8.06059215]
[1727142317550,0.0629347,2636.3,2636.2,7.9847379]
[1727142317780,0.0379964,2636.9,2636.8,3.79247]
[1727142318161,0.05790996,2636.9,2636.8,3.79247]
[1727142318364,0.05790996,2636.9,2636.6,3.79275]
[1727142320402,0.04285357,2636.8,2636.6,3.79275]
[1727142320762,0.02062092,2636.7,2636.6,3.79275]
[1727142321210,3.79262,2636.7,2636.1,3.79343]
[1727142321410,3.79262,2636.7,2635.9,4.59816]
[1727142321411,2.81654667,2636.6,2635.9,3.79366]
[1727142321597,3.7932,2636.3,2635.7,3.79399]
[1727142321995,0.02177947,2636.2,2635.7,3.79399]
[1727142322304,0.02177947,2636.2,2635.8,3.79386]
[1727142322504,0.02177947,2636.2,2635.7,3.86985823]
[1727142322505,1.99020033,2636.3,2635.7,3.86985823]
[1727142322715,0.8277,2636.4,2635.9,3.79376]
[1727142322716,0.02243733,2636.2,2635.9,3.79376]
[1727142323008,0.02243733,2636.2,2636.0,0.07586816]
[1727142323194,0.8277,2636.4,2636.0,3.86938816]
[1727142323399,0.02176883,2636.1,2636.0,3.79362]
[1727142323600,0.8277,2636.4,2636.0,3.79362]
[1727142323799,0.02176883,2636.1,2636.0,3.79362]
[1727142324119,0.04164862,2636.3,2636.0,3.79362]
[1727142324816,3.83484862,2636.3,2635.7,3.16944937]
[1727142325120,3.83486862,2636.3,2635.7,3.16944937]
[1727142325612,5.82506895,2636.3,2635.7,3.16944937]
[1727142325968,0.8277,2636.2,2635.4,6.96387937]
[1727142326175,3.79353,2636.1,2635.5,3.7943]
[1727142327576,0.04124439,2636.0,2635.6,3.79414]
[1727142328002,6.61167783,2636.2,2635.6,3.79414]
[1727142328214,0.04125534,2635.9,2635.6,3.79414]
[1727142328399,6.61167783,2636.2,2635.6,3.79414]
[1727142328570,0.04102396,2635.8,2635.6,3.79414]
[1727142328775,6.61167783,2636.2,2635.6,4.87752946]
[1727142328999,0.04079257,2635.7,2635.6,3.79414]
[1727142329196,6.61167783,2636.2,2635.6,3.79414]
[1727142329415,0.04079257,2635.7,2635.6,3.79414]
[1727142329596,2.81824783,2636.2,2635.6,7.58823]
[1727142329801,0.8277,2636.2,2635.8,6.96332937]
[1727142330822,1.99054783,2636.3,2636.0,3.79354]
[1727142331308,0.04228818,2636.2,2636.0,3.79354]
[1727142331471,1.99054783,2636.3,2636.0,3.79354]
[1727142331675,0.04228818,2636.2,2636.0,3.79354]
[1727142331887,2.80654783,2636.4,2636.0,3.79354]
[1727142332083,2.80654783,2636.4,2636.1,3.79334]
[1727142332084,0.04251948,2636.3,2636.1,3.79334]
[1727142332297,0.04251948,2636.3,2636.2,3.79333]
[1727142332620,0.816,2636.6,2636.2,3.79333]
[1727142332915,0.816,2636.6,2636.1,7.74438937]
[1727142332916,2.80604865,2636.8,2636.4,3.79302]
[1727142333115,2.80604865,2636.8,2636.4,4.551632]
[1727142333472,2.80604865,2636.8,2636.5,3.79287]
[1727142333680,7.4379964,2636.9,2636.5,3.8687294]
[1727142333681,9.42804505,2636.9,2636.5,3.8687294]
[1727142333904,0.0379964,2636.9,2636.7,3.79248]
[1727142334100,0.0379964,2636.9,2636.8,4.171718]
[1727142334308,0.0379964,2636.9,2636.8,4.24755891]
[1727142334704,0.05882381,2636.9,2636.8,4.24755891]
[1727142335132,0.14701731,2636.9,2636.8,4.24755891]
[1727142335305,0.05882381,2636.9,2636.8,4.24755891]
[1727142335506,0.1462594,2636.9,2636.8,7.24755891]
[1727142336265,0.1462594,2636.9,2636.8,4.24755891]
[1727142339837,0.0379964,2636.9,2636.8,4.24755891]
[1727142342163,0.0585336,2636.9,2636.8,11.19860828]
[1727142342318,0.0585336,2636.9,2636.8,11.12276737]
[1727142342527,0.0379964,2636.9,2636.8,11.12276737]
[1727142343175,0.0379964,2636.9,2636.8,7.953318]
[1727142344030,0.0379964,2636.9,2636.8,11.12276737]
[1727142351872,0.0379964,2636.9,2636.8,10.34116737]
[1727142353993,0.0379964,2636.9,2636.8,11.66834009]
[1727142354586,0.0379964,2636.9,2636.8,11.15466737]
[1727142358917,0.0379964,2636.9,2636.8,11.70466737]
[1727142361128,0.0379964,2637.7,2637.6,3.79132]
[1727142361336,0.0379964,2637.7,2637.6,7.80233837]
[1727142361507,0.0379964,2637.7,2637.6,7.87815361]
[1727142362526,0.0379964,2637.7,2637.6,10.87815361]
[1727142362820,0.0379964,2637.7,2637.6,10.80233837]
[1727142367215,0.0379964,2637.7,2637.4,4.62437]
[1727142367216,0.8618964,2637.7,2637.4,6.96091937]
[1727142367419,0.8618964,2637.7,2637.5,3.79138]
[1727142367620,0.09915558,2637.6,2637.4,3.79147]
[1727142367803,0.8618964,2637.7,2637.4,3.79147]
[1727142368323,0.8618964,2637.7,2637.6,6.96076937]
[1727142368324,0.0379964,2637.7,2637.6,6.96076937]
[1727142368526,0.0379964,2637.7,2637.4,7.74030131]
[1727142368682,0.8239,2637.6,2637.2,3.79183]
[1727142368909,0.8239,2637.6,2637.3,3.16944937]
[1727142369109,0.00266873,2637.5,2637.3,3.16944937]
[1727142369346,0.00266873,2637.5,2637.4,3.79156]
[1727142370123,0.00266873,2637.5,2637.3,3.16944937]
[1727142370345,0.00266873,2637.5,2637.3,6.96117937]
[1727142370539,0.00266873,2637.5,2637.3,6.96118937]
[1727142371218,0.00266873,2637.5,2637.3,3.16944937]
[1727142371720,0.00266873,2637.5,2637.0,3.7921]
[1727142371721,0.8239,2637.4,2637.0,3.7921]
[1727142372062,0.00268993,2637.3,2637.0,3.7921]
[1727142372212,0.00200029,2637.3,2637.0,3.7921]
[1727142372418,0.00200029,2637.3,2636.9,3.0]
[1727142372716,3.79198,2637.2,2636.7,3.16944937]
[1727142372915,4.61594,2637.1,2636.5,3.79282]
[1727142373116,0.8255665,2637.1,2636.7,3.7926]
[1727142373416,0.82498013,2637.1,2636.7,3.7926]
[1727142373825,0.82705687,2637.1,2636.7,3.7926]
[1727142374031,0.82559308,2637.1,2636.9,3.16944937]
[1727142374341,0.00169308,2637.1,2637.0,3.79218]
[1727142374655,0.8239,2637.5,2637.1,3.79195]
[1727142374815,0.8239,2637.5,2637.2,3.16944937]
[1727142376161,0.8239,2637.5,2637.2,7.03706962]
[1727142376162,0.0038879,2637.4,2637.2,7.03706962]
[1727142376320,0.00282436,2637.4,2637.3,3.79175]
[1727142376553,0.00369453,2637.4,2637.3,3.79175]
[1727142377200,0.00369453,2637.4,2637.2,3.16944937]
[1727142377355,0.00369453,2637.4,2637.0,3.86800074]
[1727142377701,0.00369453,2637.4,2637.0,3.79217]
[1727142378190,0.00369453,2637.4,2636.9,0.07583111]
[1727142378191,0.00369453,2637.4,2636.8,9.96189937]
[1727142378398,0.806,2637.3,2636.9,3.79224]
[1727142378755,0.00313564,2637.2,2636.9,3.79224]
[1727142378968,0.806,2637.3,2636.9,3.79224]
[1727142379156,0.00290452,2637.1,2637.0,3.79217]
[1727142379385,0.806,2637.3,2637.0,3.79217]
[1727142379553,0.00290452,2637.1,2637.0,3.79217]
[1727142379891,0.806,2637.3,2637.0,5.3210282]
[1727142380074,0.09866575,2637.1,2637.0,5.3210282]
[1727142380275,0.806,2637.3,2637.1,3.79193]
[1727142380588,0.806,2637.6,2637.1,3.86776269]
[1727142381156,0.806,2637.6,2637.2,3.79178]
[1727142381490,0.806,2637.6,2637.2,5.02758503]
[1727142382086,4.59741,2637.6,2637.0,3.79213]
[1727142382403,0.0379964,2637.7,2636.6,3.79262]
[1727142382404,0.806,2637.3,2636.6,3.79262]
[1727142382691,0.806,2637.3,2636.5,3.97034937]
[1727142382692,0.806,2637.1,2636.5,3.16944937]
[1727142382899,3.79219,2637.0,2636.5,3.16944937]
[1727142383105,3.79219,2637.0,2636.3,0.8009]
[1727142383106,3.79233,2636.9,2636.3,0.8009]
[1727142383260,0.806,2636.8,2636.2,6.96268937]
[1727142383458,0.80680799,2636.8,2636.2,11.60808802]
[1727142383797,4.59927799,2636.8,2636.2,7.73899831]
[1727142383959,4.59927799,2636.8,2636.2,10.75585937]
[1727142384161,0.80680799,2636.8,2636.3,3.79318]
[1727142384468,0.806,2636.8,2636.3,3.79318]
[1727142384858,0.806,2636.8,2636.2,6.96263937]
[1727142385297,5.78083342,2637.0,2636.0,6.96293937]
[1727142385298,0.806,2636.6,2636.0,6.96293937]
[1727142385603,4.59879,2636.6,2636.0,8.11871031]
[1727142388104,0.806,2636.6,2636.2,3.16944937]
[1727142388274,5.78083342,2637.0,2636.4,3.16944937]
[1727142388275,0.806,2636.8,2636.4,3.16944937]
[1727142388596,0.00106063,2636.7,2636.5,3.86873241]
[1727142388816,1.98864342,2637.2,2636.6,3.16944937]
[1727142388978,0.806,2637.1,2636.8,3.16944937]
[1727142389301,0.00243146,2637.0,2636.8,3.16944937]
[1727142389459,0.00141476,2637.0,2636.8,3.16944937]
[1727142389958,0.00141476,2637.0,2636.7,0.07584321]
[1727142390585,0.00141476,2637.0,2636.7,3.86845321]
[1727142390803,0.00141476,2637.0,2636.8,4.87541526]
[1727142391092,0.00141476,2637.0,2636.9,0.07583701]
[1727142392200,0.00141476,2637.0,2636.8,1.15889245]
[1727142392373,0.00141476,2637.0,2636.9,6.96177937]
[1727142392570,0.806,2637.3,2636.9,7.03761571]
[1727142392765,0.00250689,2637.2,2636.9,8.30903381]
[1727142392962,0.806,2637.3,2636.9,8.23319747]
[1727142393167,0.00250689,2637.2,2636.9,8.23319747]
[1727142393409,0.806,2637.3,2636.9,8.23319747]
[1727142393692,0.00227574,2637.1,2636.9,8.23319747]
[1727142393895,0.00227574,2637.1,2636.9,1.2714181]
[1727142394089,3.79206,2637.1,2636.7,3.16944937]
[1727142394401,0.00204457,2637.0,2636.7,3.16944937]
[1727142394607,4.59786,2637.3,2636.7,3.16944937]
[1727142394816,0.00146125,2636.9,2636.7,3.16944937]
[1727142394964,3.88483975,2637.2,2636.7,3.16944937]
[1727142395169,3.79207,2637.1,2636.7,3.16944937]
[1727142396275,0.00153077,2637.0,2636.7,3.16944937]
[1727142396471,0.806,2636.9,2636.3,3.79313]
[1727142396700,4.59843,2636.9,2636.4,3.16944937]
[1727142396896,4.59843,2636.9,2636.4,3.24529916]
[1727142396897,0.00235602,2636.8,2636.4,3.24529916]
[1727142398014,0.00235602,2636.8,2636.4,3.16944937]
[1727142398580,0.806,2636.7,2636.1,3.16944937]
[1727142398800,1.58885167,2637.0,2635.8,3.97034937]
[1727142398801,3.79306,2636.4,2635.8,3.97034937]
[1727142399037,0.806,2636.3,2635.8,1.15582594]
[1727142399235,0.806,2636.3,2635.4,7.76475937]
[1727142399236,3.79343,2636.2,2635.4,7.76475937]
[1727142399372,0.806,2636.3,2634.9,0.51367272]
[1727142399373,3.79374,2636.0,2635.2,3.16944937]
[1727142399580,0.806,2635.7,2635.2,3.16944937]
[1727142399816,0.806,2635.7,2635.2,3.94596431]
[1727142400376,0.806,2635.7,2635.2,7.74072431]
[1727142400997,0.09167964,2635.6,2635.2,7.74072431]
[1727142401529,0.09167964,2635.6,2635.3,3.79462]
[1727142402238,0.09167964,2635.6,2635.2,3.94596431]
[1727142402377,0.09167964,2635.6,2635.3,0.85416843]
[1727142405589,0.09167964,2635.6,2635.3,4.64878843]
[1727142406323,0.806,2635.7,2635.3,4.64878843]
[1727142406734,0.0911635,2635.6,2635.3,4.64878843]
[1727142407394,0.806,2635.7,2635.3,4.64878843]
[1727142407599,0.0911635,2635.6,2635.4,0.78182378]
[1727142407990,0.806,2635.7,2635.4,0.78182378]
[1727142408190,0.0911635,2635.6,2635.4,0.78182378]
[1727142408391,0.0911635,2635.6,2635.4,4.57629378]
[1727142408604,0.0911635,2635.6,2635.4,0.78182378]
[1727142408816,0.0911635,2635.6,2635.4,4.57630378]
[1727142409000,0.0911635,2635.6,2635.5,0.83709238]
[1727142409205,0.7901,2635.9,2635.5,0.83709238]
[1727142409407,0.09117106,2635.8,2635.5,0.83709238]
[1727142409790,0.09117106,2635.8,2635.5,7.80084175]
[1727142410089,0.09117106,2635.8,2635.6,3.87007164]
[1727142410311,0.09117106,2635.8,2635.7,1.16709134]
[1727142411218,0.09117106,2635.8,2635.7,4.96114134]
[1727142411415,0.7901,2636.1,2635.7,4.96114134]
[1727142411648,0.09082717,2635.8,2635.7,4.96114134]
[1727142411856,0.7901,2636.3,2635.8,3.79386]
[1727142412024,0.7901,2636.3,2635.9,7.8386695]
[1727142412211,0.7901,2636.3,2635.9,7.91453745]
[1727142412414,0.7901,2636.3,2635.9,7.8386695]
[1727142415255,0.7901,2636.3,2636.0,3.79353]
[1727142415461,0.7901,2636.6,2636.1,1.16321995]
[1727142415620,0.7901,2636.6,2636.0,3.79353]
[1727142415956,4.58287,2636.6,2636.0,3.79353]
[1727142416455,4.58287,2636.6,2635.9,8.6392695]
[1727142416679,8.37574,2636.6,2635.9,8.6392695]
[1727142416817,4.58296,2636.6,2636.0,4.65750695]
[1727142417560,0.7901,2636.6,2636.0,4.65750695]
[1727142417723,0.7901,2636.6,2636.1,3.79346]
[1727142418519,0.7901,2636.6,2636.0,4.65750695]
[1727142418720,0.7901,2636.6,2636.0,8.45104695]
[1727142419239,0.7901,2636.6,2636.0,4.65746695]
[1727142419446,4.58288,2636.6,2636.1,3.79343]
[1727142422563,0.7901,2636.6,2636.2,3.79333]
[1727142422953,0.7901,2636.6,2636.0,8.45098695]
[1727142424272,0.7901,2636.6,2636.1,5.03558363]
[1727142424629,0.7901,2636.6,2636.2,3.16944937]
[1727142424833,0.7901,2636.6,2636.4,3.79296]
[1727142425073,0.09112657,2636.5,2636.4,3.79296]
[1727142425946,0.09112657,2636.5,2636.4,4.57166]
[1727142426145,0.0900932,2636.5,2636.4,5.73268325]
[1727142426481,0.7869,2637.0,2636.4,5.73268325]
[1727142426640,0.7869,2637.0,2636.6,3.16944937]
[1727142426991,0.00089403,2636.9,2636.4,8.90213262]
[1727142427287,4.57909,2637.0,2636.4,8.90213262]
[1727142427571,4.57909,2637.0,2636.4,8.12343262]
[1727142427731,4.57947,2636.8,2636.2,3.79324]
[1727142428273,4.47947,2636.8,2636.2,3.79324]
[1727142428874,3.79248,2636.8,2635.9,3.7787]
[1727142429059,0.00091532,2636.7,2636.2,6.96265937]
[1727142429236,0.00091532,2636.7,2636.2,4.32091136]
[1727142429437,1.58885167,2637.0,2636.5,3.16944937]
[1727142429664,8.98885167,2637.1,2636.7,3.16944937]
[1727142429871,0.00158409,2636.9,2636.7,3.16944937]
[1727142430073,3.79221,2637.0,2636.4,3.79303]
[1727142430238,0.00143696,2636.8,2636.4,3.79303]
[1727142430438,7.58451,2637.0,2636.4,3.79303]
[1727142430639,0.00120574,2636.7,2636.4,3.79303]
[1727142430944,5.38106167,2637.0,2636.4,4.80477296]
[1727142431140,0.00097449,2636.6,2636.4,3.79303]
[1727142431345,0.7869,2636.9,2636.4,3.79303]
[1727142431585,0.7869,2636.9,2636.5,7.03808266]
[1727142431872,0.00085652,2636.8,2636.6,3.79266]
[1727142432090,0.00085652,2636.8,2636.7,4.57225231]
[1727142432296,0.7869,2637.4,2637.0,3.79212]
[1727142432572,0.7869,2637.4,2636.9,3.16944937]
[1727142432994,0.7869,2637.4,2636.8,3.79242]
[1727142432995,4.57852,2637.4,2636.8,3.79242]
[1727142433292,4.57852,2637.4,2636.8,5.0237152]
[1727142434154,4.57852,2637.4,2636.8,1.2312952]
[1727142434155,3.7955168,2637.3,2636.8,1.2312952]
[1727142434354,0.7869,2637.2,2636.7,3.79256]
[1727142434759,0.00319458,2637.1,2636.7,3.79256]
[1727142435555,0.7869,2637.0,2636.4,7.74107937]
[1727142435756,0.7869,2637.0,2636.5,3.79287]
[1727142435989,0.0027323,2636.9,2636.5,3.79287]
[1727142436891,0.0027323,2636.9,2636.3,3.79318]
[1727142436892,0.7869,2636.8,2636.3,3.79318]
[1727142437058,0.78966811,2636.8,2636.3,3.79318]
[1727142437663,0.78966811,2636.8,2636.4,3.79305]
[1727142438490,0.00276811,2636.8,2636.5,7.34153437]
[1727142438697,1.58885167,2637.2,2636.6,3.0]
[1727142438870,0.0379964,2637.7,2637.6,3.79132]
[1727142439055,0.0379964,2637.7,2637.6,10.76376937]
[1727142439400,0.0379964,2637.7,2637.6,11.88407429]
[1727142439558,0.0379964,2637.7,2637.6,13.52808711]
[1727142439766,0.0379964,2637.7,2637.6,15.26004382]
[1727142439965,0.0379964,2638.5,2637.6,15.26004382]
[1727142439966,0.0379964,2638.5,2638.4,7.59317]
[1727142440194,0.0379964,2638.5,2638.4,10.83840152]
[1727142440419,0.0379964,2639.3,2638.4,10.83840152]
[1727142440420,0.0379964,2639.3,2639.2,3.78902]
[1727142440566,0.0379964,2639.3,2639.2,7.03423167]
[1727142440762,0.0379964,2639.3,2639.2,1.16265417]
[1727142440763,0.11130246,2639.3,2639.2,1.16265417]
[1727142440987,0.11130246,2639.3,2638.9,3.78938]
[1727142440988,0.8344964,2639.3,2638.9,3.78938]
[1727142441202,0.8344964,2639.3,2639.0,3.78919]
[1727142441374,0.0379964,2639.3,2639.2,3.78902]
[1727142444776,0.0379964,2639.3,2639.0,3.16944937]
[1727142444977,0.0379964,2639.3,2639.2,3.78902]
[1727142445168,0.0379964,2639.3,2639.2,4.87137568]
[1727142447215,0.8344964,2639.3,2638.9,3.78943]
[1727142447419,0.0379964,2639.3,2639.2,7.76146937]
[1727142447603,0.0379964,2639.3,2639.2,7.83723167]
[1727142448318,0.0379964,2639.3,2639.2,10.83723167]
[1727142448618,0.0379964,2639.3,2639.2,9.9796131]
[1727142450519,0.0379964,2639.3,2639.2,10.5296131]
[1727142451017,0.0379964,2639.3,2639.2,9.97688856]
[1727142452714,0.0379964,2639.3,2639.2,9.42688856]
[1727142455582,0.0379964,2639.3,2639.2,8.62388856]
[1727142456281,0.0379964,2639.3,2639.0,6.95862937]
[1727142456684,0.0379964,2639.3,2639.2,3.78902]
[1727142457221,0.0379964,2639.3,2639.0,6.95862937]
[1727142457515,0.7965,2639.2,2639.0,6.95862937]
[1727142457705,0.7965,2639.2,2639.0,3.78918]
[1727142458684,0.7965,2639.2,2639.1,3.78917]
[1727142459333,0.7965,2639.2,2639.0,3.78918]
[1727142459620,0.7965,2639.2,2639.1,3.78917]
[1727142459792,0.0379964,2639.3,2639.2,3.78902]
[1727142460828,0.0379964,2639.3,2639.0,3.78918]
[1727142461034,0.0379964,2639.3,2638.8,6.95899937]
[1727142461205,0.7965,2638.8,2638.3,3.79031]
[1727142461423,0.7965,2638.8,2638.1,3.79054]
[1727142461715,3.16944937,2639.1,2638.1,3.79054]
[1727142461716,0.7965,2638.6,2638.3,3.7903]
[1727142462093,0.7965,2638.6,2638.1,7.58105]
[1727142462304,0.7965,2638.6,2638.1,4.86555994]
[1727142462629,0.7965,2638.6,2638.2,3.79043]
[1727142463017,0.7965,2638.6,2638.1,4.86555994]
[1727142463417,0.7965,2638.6,2638.2,3.79045]
[1727142464245,0.07234219,2638.5,2638.2,3.79045]
[1727142464406,0.07234219,2638.5,2638.1,4.86555994]
[1727142464741,0.07234219,2638.5,2637.9,3.79087]
[1727142464951,0.07234219,2638.5,2637.9,7.58166]
[1727142465149,0.07234219,2638.5,2637.9,3.79079]
[1727142465852,0.07234219,2638.5,2638.0,3.79074]
[1727142466019,0.07234219,2638.5,2637.9,3.79079]
[1727142466408,0.07234219,2638.5,2638.1,3.7906]
[1727142466608,0.07234219,2638.5,2638.2,3.7904]
[1727142466909,0.07234219,2638.5,2638.2,3.79042]
[1727142467229,0.07234219,2638.5,2638.1,3.7906]
[1727142467230,0.07234219,2638.5,2638.3,3.79031]
[1727142467808,0.07234219,2638.5,2638.4,3.86596882]
[1727142468007,0.07234219,2638.5,2638.4,3.86596295]
[1727142468233,8.176,2638.9,2638.5,3.78996]
[1727142468652,0.776,2638.9,2638.5,3.78996]
[1727142468805,0.776,2638.9,2638.7,3.78963]
[1727142469234,0.776,2638.9,2638.6,3.78985]
[1727142470107,0.07166998,2638.8,2638.5,3.79001]
[1727142472738,0.07166998,2638.8,2638.3,7.34635085]
[1727142473049,4.56575,2638.7,2638.1,3.79051]
[1727142473240,4.56575,2638.7,2637.9,7.58159]
[1727142473241,3.78997,2638.6,2637.9,7.58159]
[1727142473421,3.78997,2638.6,2638.0,3.79074]
[1727142473422,0.07163316,2638.6,2638.0,3.79074]
[1727142473622,0.07163316,2638.6,2638.0,3.16944937]
[1727142473812,0.07163316,2638.6,2638.3,3.16944937]
[1727142474013,0.07163316,2638.6,2638.4,3.79012]
[1727142474234,0.07163316,2638.6,2638.5,3.79003]
[1727142474934,0.776,2639.0,2638.6,3.78975]
[1727142475325,0.07100827,2638.9,2638.6,3.78975]
[1727142475643,0.07100827,2638.9,2638.6,4.17630468]
[1727142475853,0.07100827,2638.9,2638.8,3.7896]
[1727142477150,0.776,2639.2,2638.9,3.78945]
[1727142477652,0.07093442,2639.1,2638.9,3.78945]
[1727142477852,0.07093442,2639.1,2638.8,3.7896]
[1727142478062,0.07093442,2639.1,2638.6,3.78984]
[1727142478861,0.07093442,2639.1,2638.6,7.57962]
[1727142479061,0.07093442,2639.1,2638.6,3.78978]
[1727142479477,0.8102,2639.0,2638.2,3.79039]
[1727142479625,0.07044077,2638.9,2638.4,3.79013]
[1727142479825,0.07044077,2638.9,2638.5,3.7899]
[1727142480071,0.07044077,2638.9,2638.6,3.78979]
[1727142481748,0.07044077,2638.9,2638.7,3.78966]
[1727142481948,0.07044077,2638.9,2638.6,3.78979]
[1727142482161,0.07044077,2638.9,2638.4,3.79006]
[1727142482466,0.8102,2638.8,2638.2,7.58076]
[1727142482830,0.07091133,2638.7,2638.3,3.79019]
[1727142483032,0.8102,2638.8,2638.3,3.79019]
[1727142483232,0.07119509,2638.7,2638.4,3.79014]
[1727142483529,0.8102,2638.8,2638.4,4.57544908]
[1727142483731,0.07142118,2638.6,2638.5,3.79]
[1727142484073,0.8102,2638.8,2638.5,3.79]
[1727142484365,0.07115162,2638.7,2638.5,3.79]
[1727142484866,0.07137771,2638.6,2638.5,3.79]
[1727142485066,0.8102,2638.8,2638.5,5.02525985]
[1727142485364,0.07115162,2638.7,2638.5,5.02525985]
[1727142485747,0.8102,2638.8,2638.5,5.02525985]
[1727142486070,0.8102,2638.8,2638.4,3.79014]
[1727142486273,0.88116245,2638.7,2638.2,3.7904]
[1727142486472,0.88116245,2638.7,2638.2,7.58075]
[1727142486687,0.88116245,2638.7,2638.4,3.79013]
[1727142486989,0.07096245,2638.7,2638.5,3.79001]
[1727142487280,3.8102,2639.2,2638.2,3.79035]
[1727142487480,0.88060826,2639.1,2638.3,3.79028]
[1727142487977,0.88060826,2639.1,2638.4,3.79014]
[1727142487978,0.8102,2638.9,2638.4,3.79014]
[1727142488273,0.07008373,2638.8,2638.4,3.79014]
[1727142489645,0.07008373,2638.8,2638.2,10.75014937]
[1727142489861,3.85971373,2638.8,2638.2,3.79035]
[1727142490538,0.07008373,2638.8,2638.2,3.79035]
[1727142490742,0.07008373,2638.8,2638.2,4.17696527]
[1727142492044,0.07008373,2638.8,2638.3,3.79017]
[1727142492744,0.07008373,2638.8,2638.6,3.78985]
[1727142492951,0.07008373,2638.8,2638.7,3.78974]
[1727142493156,0.07008373,2638.8,2638.6,3.78985]
[1727142493355,0.07008373,2638.8,2638.7,3.78974]
[1727142494248,0.8087,2639.1,2638.7,3.78974]
[1727142494454,0.07091556,2639.0,2638.7,3.78974]